{"text_format":"1","workbook":"xlsx","n_sheets":2,"sheets":["Tabelle1","Tabelle2"],"not_rendered":{"charts":0,"images":0,"macros":1,"external_links":0,"defined_names":12,"comments":0,"pivot_tables":0},"unopened":[],"bounds":{"document_bytes":16777216,"sheet_cells":100000,"rows_first":2000,"rows_last":500,"rows_between":2000,"halvings":0,"cell_chars":16384,"cell_head_chars":4096},"cells_cut":0,"cells_raw":0,"read":"whole","date_system":"1900"}

{"sheet":"Tabelle1","index":0,"n_rows":258,"n_cols":19,"rows_kept":258,"cut":false,"hidden":false,"merged":[[154,8,154,10],[9,4,9,5],[0,7,16,7],[21,3,21,6],[210,1,215,1],[16,4,16,5],[154,4,154,6]]}
[null,"Relevé des données MT Reha Gériatrie",null,null,null,null,null,{"$f":"MID(CELL(\"Dateiname\"),FIND(\"[\",CELL(\"Dateiname\"))+1,FIND(\"]\",CELL(\"Dateiname\"))-FIND(\"[\",CELL(\"Dateiname\"))-1)","v":"MT_Reha_Ger Klinik Wxx Fallid FR 2014 09 05.xlsm"}]
[]
[null,null,null,"Questionnaires","incomplet","complet",null,null,null,null,null,null,"A",null,null,"B",null,null,"C"]
[null,null,"A","Information sur le cas",{"$f":"IF(OR(E25=\"\",E26=\"\",E27=\"\",E28=\"\",E29=\"\",E30=\"\",E31=\"\",E32=\"\",E33=\"\",E34=\"\",E35=\"\",E36=\"\"),\"x\",\"\")","v":"x"},{"$f":"IF(OR(E25=\"\",E26=\"\",E27=\"\",E28=\"\",E29=\"\",E30=\"\",E31=\"\",E32=\"\",E33=\"\",E34=\"\",E35=\"\",E36=\"\"),\"\",\"x\")","v":""}]
[null,null,"B","CIRS",{"$f":"IF(OR(E39=\"\",E40=\"\",E41=\"\",E42=\"\",E43=\"\",E44=\"\",E45=\"\",E46=\"\",E47=\"\",E48=\"\",E49=\"\",E50=\"\",E51=\"\",E52=\"\"),\"x\",\"\")","v":"x"},{"$f":"IF(OR(E39=\"\",E40=\"\",E41=\"\",E42=\"\",E43=\"\",E44=\"\",E45=\"\",E46=\"\",E47=\"\",E48=\"\",E49=\"\",E50=\"\",E51=\"\",E52=\"\"),\"\",\"x\")","v":""}]
[null,null,"C","MIF",{"$f":"IF(OR(AND(OR(E56=\"\",E57=\"\",E58=\"\",E59=\"\",E60=\"\",E61=\"\",E62=\"\",E63=\"\",E64=\"\",E65=\"\",E66=\"\",E67=\"\",E68=\"\",E69=\"\",E70=\"\",E71=\"\",E72=\"\",E73=\"\"),E75=1),AND(OR(E56<>\"\",E57<>\"\",E58<>\"\",E59<>\"\",E60<>\"\",E61<>\"\",E62<>\"\",E63<>\"\",E64<>\"\",E65<>\"\",E66<>\"\",E67<>\"\",E68<>\"\",E69<>\"\",E70<>\"\",E71<>\"\",E72<>\"\",E73<>\"\"),E75=2)),\"x\",\"\")","v":"x"},{"$f":"IF(OR(AND(E56<>\"\",E57<>\"\",E58<>\"\",E59<>\"\",E60<>\"\",E61<>\"\",E62<>\"\",E63<>\"\",E64<>\"\",E65<>\"\",E66<>\"\",E67<>\"\",E68<>\"\",E69<>\"\",E70<>\"\",E71<>\"\",E72<>\"\",E73<>\"\",E75=1),AND(E56=\"\",E57=\"\",E58=\"\",E59=\"\",E60=\"\",E61=\"\",E62=\"\",E63=\"\",E64=\"\",E65=\"\",E66=\"\",E67=\"\",E68=\"\",E69=\"\",E70=\"\",E71=\"\",E72=\"\",E73=\"\",E75=2)),\"x\",\"\")","v":""}]
[null,null,"D","MMSE – Fonction cognitive ",{"$f":"IF(AND(OR(E78<>\"\",E79<>\"\",E80<>\"\",E81<>\"\",E82<>\"\",E83<>\"\",E84<>\"\",E85<>\"\",E86<>\"\",E87<>\"\",E88<>\"\",E89=97,E89=98,E89=99),OR(E78=\"\",E79=\"\",E80=\"\",E81=\"\",E82=\"\",E83=\"\",E84=\"\",E85=\"\",E86=\"\",E87=\"\",E88=\"\",E89=1)),\"\",\"x\")","v":"x"},{"$f":"IF(AND(OR(E78=\"\",E79=\"\",E80=\"\",E81=\"\",E82=\"\",E83=\"\",E84=\"\",E85=\"\",E86=\"\",E87=\"\",E88=\"\",E89=97,E89=98,E89=99),OR(E78<>\"\",E79<>\"\",E80<>\"\",E81<>\"\",E82<>\"\",E83<>\"\",E84<>\"\",E85<>\"\",E86<>\"\",E87<>\"\",E88<>\"\",E89=1)),\"\",\"x\")","v":""}]
[null,null,"E","Horloge",{"$f":"IF(AND(OR(E93<>\"\",E94<>\"\",E95=97,E95=98,E95=99),OR(E95=1,E93=\"\",E94=\"\")),\"\",\"x\")","v":"x"},{"$f":"IF(AND(OR(E95=97,E95=98,E95=99,E93=\"\",E94=\"\"),OR(OR(AND(E93<>\"\",E94=\"\"),AND(E93=\"\",E94<>\"\"),E95<>1),)),\"x\",\"\")","v":""}]
[null,null,"F","CAM / test de marche / NRS / GDS / EPUAP / VAS",{"$f":"IF(OR(E105=\"\",E109=\"\",E110=\"\",E112=\"\",E115=\"\",E117=\"\"),\"x\",\"\")","v":"x"},{"$f":"IF(OR(E105=\"\",E109=\"\",E110=\"\",E112=\"\",E115=\"\",E117=\"\"),\"\",\"x\")","v":""}]
[null,null,null,"CAM","seulement coches"]
[null,null,null,"Test de marche",{"$f":"IF(AND(OR(E105<>\"\",E107=97,E107=98,E107=99),OR(E105=\"\",E107=1)),\"\",\"x\")","v":"x"},{"$f":"IF(OR(AND(E105=\"\",OR(E107=97,E107=98,E107=99)),AND(E105<>\"\",E107=1)),\"x\",\"\")","v":""}]
[null,null,null,"NRS",{"$f":"IF(AND(E109<>\"\",E110<>\"\"),\"\",\"x\")","v":"x"},{"$f":"IF(AND(E109<>\"\",E110<>\"\"),\"x\",\"\")","v":""}]
[null,null,null,"GDS",{"$f":"IF(AND(OR(E112<>\"\",E113=97,E113=98,E113=99),OR(E112=\"\",E113=1)),\"\",\"x\")","v":"x"},{"$f":"IF(OR(AND(E112=\"\",OR(E113=97,E113=98,E113=99)),AND(E112<>\"\",E113=1)),\"x\",\"\")","v":""}]
[null,null,null,"EPUAP",{"$f":"IF(E115=\"\",\"x\",\"\")","v":"x"},{"$f":"IF(E115<>\"\",\"x\",\"\")","v":""}]
[null,null,null,"VAS",{"$f":"IF(AND(OR(E117<>\"\",E118=97,E118=98,E118=99),OR(E117=\"\",E118=1)),\"\",\"x\")","v":"x"},{"$f":"IF(AND(OR(E117=\"\",E118<>97,E118<>98,E118<>99),OR(E117<>\"\",E118<>1)),\"x\",\"\")","v":""}]
[null,null,null,"Questions complémentaires générales",{"$f":"IF(OR(E126=\"\",E127=\"\",E128=\"\",E130=\"\"),\"x\",\"\")","v":"x"},{"$f":"IF(OR(E126=\"\",E127=\"\",E128=\"\",E130=\"\"),\"\",\"x\")","v":""}]
[null,null,null,"Questions complémentaires état cardiologique et pulmonaire","seulement coches"]
[null,null,null,"HAQ",{"$f":"IF(OR(I150=\".\",I151=\".\",I153=\".\",I154=\".\",I156=\".\",I157=\".\",I158=\".\",I160=\".\",I161=\".\",I173=\".\",I174=\".\",I175=\".\",I177=\".\",I178=\".\",I180=\".\",I181=\".\",I182=\".\",I184=\".\",I185=\".\",I187=\".\",I188=\".\",I189=\".\",I191=\".\",I192=\".\",I193=\".\"),\"x\",\"\")","v":"x"},{"$f":"IF(AND(I150<>\".\",I151<>\".\",I153<>\".\",I154<>\".\",I156<>\".\",I157<>\".\",I158<>\".\",I160<>\".\",I161<>\".\",I173<>\".\",I174<>\".\",I175<>\".\",I177<>\".\",I178<>\".\",I180<>\".\",I181<>\".\",I182<>\".\",I184<>\".\",I185<>\".\",I187<>\".\",I188<>\".\",I189<>\".\",I191<>\".\",I192<>\".\",I193<>\".\"),\"x\",\"\")","v":""}]
[null,null,null,"Prestations",{"$f":"IF(OR(E208=\"\",E209=\"\",E210=\"\",E211=\"\",E212=\"\",E213=\"\",E214=\"\",E215=\"\",E216=\"\",E218=\"\",E219=\"\",E220=\"\",E221=\"\",E222=\"\",E223=\"\",E224=\"\",E225=\"\"),\"x\",\"\")","v":"x"}]
[]
["Remarques"]
[]
[]
["A","Information sur le cas",null,null,null,null,null,null,null,null,null,null,"Cliniques"]
[null,null,1,"Numéro d’identification du cas FID",null,"z.B. 1122334455",null,null,null,null,null,null,"aarReha"]
[null,null,2,"Clinique",null,null,null,null,null,null,null,null,"CHUV"]
[null,null,3,"No chambre et lit dans la clinique",null,"z.B. 242.3 (N°chambreN°lit)",null,null,null,null,null,null,"EHC"]
[null,null,4,"Classe de lits (dans la semaine du relevé)",null,null,null,null,null,null,null,null,"FelixPlatter"]
[null,null,5,"Année de naissance (AAAA)",null,"z.B. 1940",null,null,null,null,null,null,"HFR"]
[null,null,6,"Sexe",null,null,null,null,null,null,null,null,"HUG"]
[null,null,8,"Le patient vient dans un partenariat stable?",{"$f":"IF(F31,1,0)","v":0},false,"cocher pour \"oui\" (1) et laisser 0 pour \"non\"",null,null,null,null,null,"Lavaux"]
[null,null,9,"Situation d'habitation",null,null,null,null,null,null,null,null,"Riviera"]
[null,null,10,"Date d'admission (JJMMAAAA)",null,"z.B. 1.11.2014",null,null,null,null,null,null,"Couverture d'assurance"]
[null,null,11,"Date du début du relevé des données",null,"z.B. 3.11.2014 (doit être un lundi, sauf si admission pendant la semaine du relevé)",null,null,null,null,null,null,"commun"]
[null,null,12,"Date de la fin du relevé des données",null,"z.B. 9.11.2014 (doit être un dimanche, sauf si sortie pendant la semaine du relevé)",null,null,null,null,null,null,"Privée"]
[null,null,13,"Sortie pendant la semaine du relevé des données",{"$f":"IF(F36,1,0)","v":0},false,"cocher pour \"oui\" (1) et laisser 0 pour \"non\"",null,null,null,null,null,"semi-privée"]
[null,null,null,null,null,null,null,null,null,null,null,null,"pas de réponse"]
["B","Multimorbidié CIRS"]
[null,null,1,"Coeur",null,"0 à 4",null,null,null,null,null,null,"Sex"]
[null,null,2,"Hypertension et vaisseaux",null,"0 à 4",null,null,null,null,null,null,"femme"]
[null,null,3,"Système hématopoïétique et lymphatique",null,"0 à 4",null,null,null,null,null,null,"homme"]
[null,null,4,"Poumons et voies respiratoires",null,"0 à 4"]
[null,null,5,"ORL et yeux",null,"0 à 4"]
[null,null,6,"Tractus gastro-intestinal supérieur",null,"0 à 4",null,null,null,null,null,null,"Condition de logement"]
[null,null,7,"Tractus gastro-intestinal inférieur",null,"0 à 4",null,null,null,null,null,null,"vit seul"]
[null,null,8,"Foie, bile et pancréas",null,"0 à 4",null,null,null,null,null,null,"ménage à 2"]
[null,null,9,"Reins",null,"0 à 4",null,null,null,null,null,null,"Ménage à 3 ou plus"]
[null,null,10,"Voies urogénitales",null,"0 à 4",null,null,null,null,null,null,"vit dans une institution (p.ex. maison de retraite)"]
[null,null,11,"Appareil locomoteur et peau",null,"0 à 4"]
[null,null,12,"Système nerveux",null,"0 à 4",null,null,null,null,null,null,"C. MIF"]
[null,null,13,"Système endocrinien, métabo-lisme…",null,"0 à 4",null,null,null,null,null,null,"relevé"]
[null,null,14,"Troubles psychiques",null,"0 à 4",null,null,null,null,null,null,"pas relevé pour raisons organisationelles et temporelles"]
[null,null,null,null,{"$f":"SUM(E39:E52)","v":0},"total"]
[]
["C","MIF - Activités journalières"]
[null,null,1,"Manger / Boire",null,"1 à 7",null,null,null,null,null,null,"Cause du non-relevé"]
[null,null,2,"Soins corporels",null,"1 à 7",null,null,null,null,null,null,1,1,"relevé"]
[null,null,3,"Bain / Douche / Toilette",null,"1 à 7",null,null,null,null,null,null,2,97,"Patient refuse de participer"]
[null,null,4,"Habillement en haut",null,"1 à 7",null,null,null,null,null,null,3,98,"Patient ne peut pas participer"]
[null,null,5,"Habillement en bas",null,"1 à 7",null,null,null,null,null,null,4,99,"raisons organisationelles"]
[null,null,6,"Hygiène intime",null,"1 à 7"]
[null,null,7,"Contrôle de la vessie",null,"1 à 7"]
[null,null,8,"Contrôle des intestins",null,"1 à 7",null,null,null,null,null,null,"HAQ"]
[null,null,9,"Transfert lit / chaise / chaise roulante",null,"1 à 7",null,null,null,null,null,null,1,"."]
[null,null,10,"Transfert aux toilettes",null,"1 à 7",null,null,null,null,null,null,2,0,"sans aucune difficulté"]
[null,null,11,"Transfert douche / baignoire",null,"1 à 7",null,null,null,null,null,null,3,1,"avec quelques difficultés"]
[null,null,12,"Marche / Chaise roulante",null,"1 à 7",null,null,null,null,null,null,4,2,"avec beaucoup de difficultés"]
[null,null,13,"Montée des escaliers",null,"1 à 7",null,null,null,null,null,null,5,3,"incapable de le faire"]
[null,null,14,"Compréhension",null,"1 à 7"]
[null,null,15,"Intelligibilité",null,"1 à 7"]
[null,null,16,"Comportement social",null,"1 à 7"]
[null,null,17,"Résolution de problème",null,"1 à 7"]
[null,null,18,"Mémoire",null,"1 à 7"]
[null,null,null,null,{"$f":"SUM(E56:E73)","v":0},"total"]
[null,null,19,"Raison si pas effectué",1]
[]
["D","MMSE – Fonction cognitive"]
[null,null,1,"Orientation – temporelle",null,"0 1 2 3 4 5"]
[null,null,2,"Orientation – spaciale",null,"0 1 2 3 4 5"]
[null,null,3,"Apprentissage",null,"0 1 2 3"]
[null,null,4,"Attention et calcul",null,"0 1 2 3 4 5"]
[null,null,5,"Rappel",null,"0 1 2 3"]
[null,null,6,"Langue - Désignation",null,"0 1 2"]
[null,null,7,"Langues – Répétition",null,"0 1"]
[null,null,8,"Exécution d'une commande en trois parties",null,"0 1 2 3"]
[null,null,9,"Lecture et exécution",null,"0 1"]
[null,null,10,"Ecrire",null,"0 1"]
[null,null,11,"Pratique constructive",null,"0 1"]
[null,null,12,"Raison si pas effectué",{"$f":"VLOOKUP(F89,M57:N60,2)","v":1},1]
[null,null,null,null,{"$f":"SUM(E78:E88)","v":0},"total"]
[]
["E","Test de l'horloge – Fonction cognitive"]
[null,null,1,"Test de l'horloge a",null,"1 à 7"]
[null,null,2,"Test de l'horloge b",null,"0 à 10"]
[null,null,3,"Raisons si test pas effectué",{"$f":"VLOOKUP(F95,M57:N60,2)","v":1},1]
[]
["F bis K"]
["F","CAM - Délire"]
[null,null,"1a","Signe d'un véritable changement",{"$f":"IF(F99,1,0)","v":0},false,"cocher pour \"oui\" (1) et laisser 0 pour \"non\""]
[null,null,"1b","Fluctuation du comportement",{"$f":"IF(F100,1,0)","v":0},false,"cocher pour \"oui\" (1) et laisser 0 pour \"non\""]
[null,null,2,"Trouble de l’attention",{"$f":"IF(F101,1,0)","v":0},false,"cocher pour \"oui\" (1) et laisser 0 pour \"non\""]
[null,null,3,"Troubles de la pensée",{"$f":"IF(F102,1,0)","v":0},false,"cocher pour \"oui\" (1) et laisser 0 pour \"non\""]
[null,null,4,"Perturbation de la conscience (quantitative)",0,false,"cocher pour \"oui\" (1) et laisser 0 pour \"non\""]
["G"," Test de marche 5m - Mobilité"]
[null,null,1,"Temps pour la distance (secondes)",null,"0 à 999"]
[null,null,2,"Avec accessoirs/appareils",{"$f":"IF(F106,1,0)","v":0},false,"cocher pour \"oui\" (1) et laisser 0 pour \"non\""]
[null,null,3,"Raisons si test pas effectué",{"$f":"VLOOKUP(F107,M57:N60,2)","v":1},1]
["H","NRS - Malnutrition"]
[null,null,1,"Détérioration de l'état nutritionnel",null,"0 à 3","Correspond à la première partie du relevé (Détérioration de l’état nutritionel)"]
[null,null,2,"Score total du NRS",null,"0 à 7","Les points relevés dans la deuxième partie (Gravité de la maladie) doivent être additionés à ceux de la première partie"]
["I","GDS - Dépression"]
[null,null,1,"Dépression",null,"0 à 6"]
[null,null,2,"Raisons si test pas effectué",{"$f":"VLOOKUP(F113,M57:N60,2)","v":1},1]
["J","Escarres selon EPUAP"]
[null,null,1,"Escarres",null,"0 à 4"]
["K","VAS - Douleurs"]
[null,null,1,"Douleurs",null,"0 à 10"]
[null,null,2,"Raisons si test pas effectué",{"$f":"VLOOKUP(F118,M57:N60,2)","v":1},1]
[]
["L","Questions complémentaires générales"]
[null,null,1,"Dépression et trouble d‘anxiété",{"$f":"IF(F121,1,0)","v":0},false,"cocher pour \"oui\" (1) et laisser 0 pour \"non\""]
[null,null,2,"Fonctions de vue limitées",0,false,"cocher pour \"oui\" (1) et laisser 0 pour \"non\""]
[null,null,3,"Fonctions de l’audition limitées ",0,false,"cocher pour \"oui\" (1) et laisser 0 pour \"non\""]
[null,null,4,"Plaies complexes présentes",0,false,"cocher pour \"oui\" (1) et laisser 0 pour \"non\""]
[null,null,5,"Pansement Vac",0,false,"cocher pour \"oui\" (1) et laisser 0 pour \"non\""]
[null,null,6,"Force en kg selon mesure moyenne de la force de main",null,"0 à 90"]
[null,null,7,"Aides à la marche",null,"0 à 5"]
[null,null,8,"Nombre de chutes de la semaine passée",null,"0 à 99"]
[null,null,9,"Matelas anti-escarres",{"$f":"IF(F129,1,0)","v":0},false,"cocher pour \"oui\" (1) et laisser 0 pour \"non\""]
[null,null,10,"Polymédication",null,"0 à 99"]
[null,null,11,"Antiépileptiques",{"$f":"IF(F131,1,0)","v":0},false,"cocher pour \"oui\" (1) et laisser 0 pour \"non\""]
[null,null,12,"Neuroleptiques",0,false,"cocher pour \"oui\" (1) et laisser 0 pour \"non\""]
[null,null,13,"Antidépresseurs",0,false,"cocher pour \"oui\" (1) et laisser 0 pour \"non\""]
[null,null,14,"Hypnotiques",0,false,"cocher pour \"oui\" (1) et laisser 0 pour \"non\""]
[null,null,15,"Aide externe avant la réadaptation",{"$f":"IF(F135,1,0)","v":0},false,"cocher pour \"oui\" (1) et laisser 0 pour \"non\""]
[null,null,null,null,null,null,null,null," "]
["M et N"]
["M","Questions complémentaires état cardiologique"]
[null,null,1,"Utilisation d'opiacés le jour du relevé?",{"$f":"IF(F139,1,0)","v":0},false,"cocher pour \"oui\" (1) et laisser 0 pour \"non\""]
[null,null,2,"Médicaments antidouleurs non-opiacés le jour du relevé?",{"$f":"IF(F140,1,0)","v":0},false,"cocher pour \"oui\" (1) et laisser 0 pour \"non\""]
[null,null,3,"Traitement par perfusion le jour du relevé?",0,false,"cocher pour \"oui\" (1) et laisser 0 pour \"non\""]
["N","Questions complémentaires état pulmonaire"]
[null,null,null,"Séjour en SI durant l’hospitalisation avant l’admission en réadaptation?",{"$f":"IF(F143,1,0)","v":0},false,"cocher pour \"oui\" (1) et laisser 0 pour \"non\""]
[null,null,null,"Trachéostomie en place le jour du relevé?",0,false,"cocher pour \"oui\" (1) et laisser 0 pour \"non\""]
[null,null,null,"Assistance respiratoire non invasive (NIV) en place?",0,false,"cocher pour \"oui\" (1) et laisser 0 pour \"non\""]
[null,null,null,"Patient sous dialyse le jour du relevé?",0,false,"cocher pour \"oui\" (1) et laisser 0 pour \"non\""]
[null,null,null,"Sous médication IV?",0,false,"cocher pour \"oui\" (1) et laisser 0 pour \"non\""]
[null,null,null,"Sous antibiotiques?",0,false,"cocher pour \"oui\" (1) et laisser 0 pour \"non\""]
[null,null,null,"Alimentation par sonde le jour du relevé ?",0,false,"cocher pour \"oui\" (1) et laisser 0 pour \"non\""]
[null,null,null,"Isolement nécessaire en chambre simple?",0,false,"cocher pour \"oui\" (1) et laisser 0 pour \"non\""]
[null,null,null,"Mesures d’hygiène supplémentaires particulières?",0,false,"cocher pour \"oui\" (1) et laisser 0 pour \"non\""]
[null,null,null,"Besoin chronique en oxygène?",0,false,"cocher pour \"oui\" (1) et laisser 0 pour \"non\""]
[]
[]
["O ","HAQ - pour la classification ST Reha",null,null,"Relevé par le patient",null,null,null,"Relevé par le thérapeute"]
[null,null,null,"S'habiller et se laver"]
[null,null,1,"S'habiller et se laver",{"$f":"VLOOKUP(F157,$M$63:$N$67,2)","v":"."},1,null,null,{"$f":"VLOOKUP(J157,$M$63:$N$67,2)","v":"."},1]
[null,null,2,"se laver les cheveux",{"$f":"VLOOKUP(F158,$M$63:$N$67,2)","v":"."},1,null,null,{"$f":"VLOOKUP(J158,$M$63:$N$67,2)","v":"."},1]
[null,null,null,"se lever"]
[null,null,3,"se lever d'une chaise",{"$f":"VLOOKUP(F160,$M$63:$N$67,2)","v":"."},1,null,null,{"$f":"VLOOKUP(J160,$M$63:$N$67,2)","v":"."},1]
[null,null,4,"se mettre/se lever du lit",{"$f":"VLOOKUP(F161,$M$63:$N$67,2)","v":"."},1,null,null,{"$f":"VLOOKUP(J161,$M$63:$N$67,2)","v":"."},1]
[null,null,null,"manger"]
[null,null,5,"couper sa viande avec le couteau",{"$f":"VLOOKUP(F163,$M$63:$N$67,2)","v":"."},1,null,null,{"$f":"VLOOKUP(J163,$M$63:$N$67,2)","v":"."},1]
[null,null,6,"porter un verre à sa bouche",{"$f":"VLOOKUP(F164,$M$63:$N$67,2)","v":"."},1,null,null,{"$f":"VLOOKUP(J164,$M$63:$N$67,2)","v":"."},1]
[null,null,7,"ouvrir brique de lait",{"$f":"VLOOKUP(F165,$M$63:$N$67,2)","v":"."},1,null,null,{"$f":"VLOOKUP(J165,$M$63:$N$67,2)","v":"."},1]
[null,null,null,"marcher"]
[null,null,8,"marcher sur terrain plat",{"$f":"VLOOKUP(F167,$M$63:$N$67,2)","v":"."},1,null,null,{"$f":"VLOOKUP(J167,$M$63:$N$67,2)","v":"."},1]
[null,null,9,"monter les escaliers",{"$f":"VLOOKUP(F168,$M$63:$N$67,2)","v":"."},1,null,null,{"$f":"VLOOKUP(J168,$M$63:$N$67,2)","v":"."},1]
[null,null,null,"Accessoires/Appareils"]
[null,null,10,"Accessoirs pour s'habiller/faire sa toilette",{"$f":"IF(F170,1,0)","v":0},false,null,null,{"$f":"IF(J170,1,0)","v":0},false,"cocher pour \"oui\" (1) et laisser 0 pour \"non\""]
[null,null,11,"accessoires pour se lever",{"$f":"IF(F171,1,0)","v":0},false,null,null,{"$f":"IF(J171,1,0)","v":0},false,"cocher pour \"oui\" (1) et laisser 0 pour \"non\""]
[null,null,12,"accessoires pour manger ",0,false,null,null,0,false,"cocher pour \"oui\" (1) et laisser 0 pour \"non\""]
[null,null,13,"accessoires pour marcher ",0,false,null,null,0,false,"cocher pour \"oui\" (1) et laisser 0 pour \"non\""]
[null,null,null,"Aide d'une personne externe"]
[null,null,14,"s'habiller/se laver",{"$f":"IF(F175,1,0)","v":0},false,null,null,{"$f":"IF(J175,1,0)","v":0},false,"cocher pour \"oui\" (1) et laisser 0 pour \"non\""]
[null,null,15,"se lever",0,false,null,null,0,false,"cocher pour \"oui\" (1) et laisser 0 pour \"non\""]
[null,null,16,"manger",0,false,null,null,0,false,"cocher pour \"oui\" (1) et laisser 0 pour \"non\""]
[null,null,17,"marcher",{"$f":"IF(F178,1,0)","v":0},false,null,null,{"$f":"IF(J178,1,0)","v":0},false,"cocher pour \"oui\" (1) et laisser 0 pour \"non\""]
[null,null,null,"Hygiène"]
[null,null,18,"se laver et se sécher",{"$f":"VLOOKUP(F180,$M$63:$N$67,2)","v":"."},1,null,null,{"$f":"VLOOKUP(J180,$M$63:$N$67,2)","v":"."},1]
[null,null,19,"prendre un bain",{"$f":"VLOOKUP(F181,$M$63:$N$67,2)","v":"."},1,null,null,{"$f":"VLOOKUP(J181,$M$63:$N$67,2)","v":"."},1]
[null,null,20,"aller aux toilettes",{"$f":"VLOOKUP(F182,$M$63:$N$67,2)","v":"."},1,null,null,{"$f":"VLOOKUP(J182,$M$63:$N$67,2)","v":"."},1]
[null,null,null,"atteindre/attraper"]
[null,null,21,"atteindre objet de 2 kg au-dessus de sa tête",{"$f":"VLOOKUP(F184,$M$63:$N$67,2)","v":"."},1,null,null,{"$f":"VLOOKUP(J184,$M$63:$N$67,2)","v":"."},1]
[null,null,22,"se pencher et ramasser un vêtement",{"$f":"VLOOKUP(F185,$M$63:$N$67,2)","v":"."},1,null,null,{"$f":"VLOOKUP(J185,$M$63:$N$67,2)","v":"."},1]
[null,null,null,"Saisir et ouvrir"]
[null,null,23,"ouvrir la portière d'une voiture",{"$f":"VLOOKUP(F187,$M$63:$N$67,2)","v":"."},1,null,null,{"$f":"VLOOKUP(J187,$M$63:$N$67,2)","v":"."},1]
[null,null,24,"ouvrir pot de confirture",{"$f":"VLOOKUP(F188,$M$63:$N$67,2)","v":"."},1,null,null,{"$f":"VLOOKUP(J188,$M$63:$N$67,2)","v":"."},1]
[null,null,25,"ouvrir/fermer les robinets",{"$f":"VLOOKUP(F189,$M$63:$N$67,2)","v":"."},1,null,null,{"$f":"VLOOKUP(J189,$M$63:$N$67,2)","v":"."},1]
[null,null,null,"autres activités"]
[null,null,26,"faire les courses",{"$f":"VLOOKUP(F191,$M$63:$N$67,2)","v":"."},1,null,null,{"$f":"VLOOKUP(J191,$M$63:$N$67,2)","v":"."},1]
[null,null,27,"monter/descendre de voiture",{"$f":"VLOOKUP(F192,$M$63:$N$67,2)","v":"."},1,null,null,{"$f":"VLOOKUP(J192,$M$63:$N$67,2)","v":"."},1]
[null,null,28,"Travaux ménagers et jardiniers",{"$f":"VLOOKUP(F193,$M$63:$N$67,2)","v":"."},1,null,null,{"$f":"VLOOKUP(J193,$M$63:$N$67,2)","v":"."},1]
[null,null,null,"Accessoires/Appareils"]
[null,null,29,"Hygiène",{"$f":"IF(F195,1,0)","v":0},false,null,null,{"$f":"IF(J195,1,0)","v":0},false,"cocher pour \"oui\" (1) et laisser 0 pour \"non\""]
[null,null,30,"Atteindre et attraper un objet",0,false,null,null,0,false,"cocher pour \"oui\" (1) et laisser 0 pour \"non\""]
[null,null,31,"Préhension",0,false,null,null,0,false,"cocher pour \"oui\" (1) et laisser 0 pour \"non\""]
[null,null,32,"Autres activités",{"$f":"IF(F198,1,0)","v":0},false,null,null,{"$f":"IF(J198,1,0)","v":0},false,"cocher pour \"oui\" (1) et laisser 0 pour \"non\""]
[null,null,null,"Aide d'une personne externe"]
[null,null,33,"Hygiène",{"$f":"IF(F200,1,0)","v":0},false,null,null,{"$f":"IF(J200,1,0)","v":0},false,"cocher pour \"oui\" (1) et laisser 0 pour \"non\""]
[null,null,34,"Atteindre",0,false,null,null,0,false,"cocher pour \"oui\" (1) et laisser 0 pour \"non\""]
[null,null,35,"Saisir et ouvrir",0,false,null,null,0,false,"cocher pour \"oui\" (1) et laisser 0 pour \"non\""]
[null,null,36,"autres activités",{"$f":"IF(F203,1,0)","v":0},false,null,null,{"$f":"IF(J203,1,0)","v":0},false,"cocher pour \"oui\" (1) et laisser 0 pour \"non\""]
[null,null,null,null,{"$f":"SUM(E157:E203)","v":0},"HAQ Score",null,null,{"$f":"SUM(I157:I203)","v":0},"HAQ Score"]
[]
["P","Prestations"]
[null,null,"Prestations dans la semaine du relevé arrondi à la minute (si pas de prestations, veuillez inscrire un zéro)"]
[null,null,1,"Soins infirmiers",null,"minutes"]
[null,null,2,"Médecins-assistants & médecins chefs de clinique",null,"minutes"]
[null,null,3,"Médecins-chefs",null,"minutes"]
[null,"minutes adapté au dimension de la groupe et aux nombre de thérapeuts",4,"Physiotherapie",null,"minutes"]
[null,null,5,"Ergotherapie",null,"minutes"]
[null,null,6,"Thérapie d'activiation",null,"minutes"]
[null,null,7,"Conseil nutritionnel",null,"minutes"]
[null,null,8,"Autre thérapie et services de conseil",null,"minutes"]
[null,null,9,"Service social",null,"minutes"]
[null,null,"CHF-Prestations dans la semaine du relevé arrondi à 1 CHF (si pas de coûts veuillez inscrire un zéro)"]
[null,null,10,"prestations de médecins spécialistes internes et externes",null,"CHF "]
[null,null,11,"externe Therapien und Beratungen",null,"CHF "]
[null,null,12,"médicaments",null,"CHF "]
[null,null,13,"examens",null,"CHF "]
[null,null,14,"analyses",null,"CHF "]
[null,null,15,"matériel",null,"CHF "]
[null,null,16,"coûts de transports",null,"CHF "]
[null,null,17,"autres coûts",null,"CHF "]
[]
[]
[]
[]
[]
[]
[]
[]
[]
[]
[]
[]
[]
[]
["F"]
[]
[]
[]
[]
[]
[]
[]
[]
[]
[]
[]
[]
[]
[]
[]
[]
[]
["G"]

{"sheet":"Tabelle2","index":1,"n_rows":0,"n_cols":0,"rows_kept":0,"cut":false,"hidden":false,"merged":[]}